bitfinex-derivatives/quotes_SOLF0:USTF0_20241127
["timestamp","ask_amount","ask_price","bid_price","bid_amount"]
[1732665600999,1.3156,230.94,230.78,1.2664]
[1732665606099,1.3156,230.94,230.68,2.4962]
[1732665606401,3.43310162,230.94,230.69,1.2081]
[1732665606601,14.3056,230.94,230.69,1.2081]
[1732665606795,16.48252352,230.94,230.69,1.2081]
[1732665609200,16.48252352,230.94,230.51,24.00865723]
[1732665609403,16.48252352,230.94,230.54,3.8801]
[1732665611404,6.93321439,230.78,230.7,6.93321439]
[1732665612407,6.93321439,230.81,230.72,6.93321439]
[1732665613909,6.93321439,230.77,230.54,3.8801]
[1732665614306,6.93321439,230.77,230.67,6.93321439]
[1732665614503,2.0,230.76,230.67,6.93321439]
[1732665615207,6.93321439,230.75,230.54,3.8801]
[1732665615406,6.93321439,230.75,230.55,2.0]
[1732665615602,2.0,230.76,230.55,2.0]
[1732665615603,6.93321439,230.73,230.65,6.93321439]
[1732665616002,6.93321439,230.75,230.67,6.93321439]
[1732665616205,6.93321439,230.75,230.55,2.0]
[1732665616206,2.0,230.74,230.69,6.93321439]
[1732665616409,2.0,230.73,230.71,6.93321439]
[1732665616609,3.8237,230.8,230.69,6.93321439]
[1732665616610,2.0,230.72,230.69,6.93321439]
[1732665616910,2.0,230.71,230.69,6.93321439]
[1732665617110,6.93321439,230.77,230.69,6.93321439]
[1732665617310,2.0,230.76,230.69,6.93321439]
[1732665620316,2.0,230.75,230.69,6.93321439]
[1732665621604,6.93321439,230.73,230.67,6.93321439]
[1732665622308,8.93321439,230.75,230.67,6.93321439]
[1732665622910,2.0,230.75,230.69,6.93321439]
[1732665623116,1.2627,230.79,230.71,6.93321439]
[1732665623408,6.93321439,230.77,230.61,2.0]
[1732665623613,6.93321439,230.77,230.62,3.727]
[1732665623912,6.93321439,230.77,230.69,6.93321439]
[1732665625608,6.93321439,230.73,230.65,6.93321439]
[1732665625809,6.93321439,230.69,230.53,2.0]
[1732665626113,6.93321439,230.67,230.59,6.93321439]
[1732665626409,6.93321439,230.65,230.57,6.93321439]
[1732665628119,6.93321439,230.69,230.61,6.93321439]
[1732665628316,2.0,230.68,230.63,6.93321439]
[1732665629520,2.0,230.68,230.65,6.93321439]
[1732665630018,2.0,230.68,230.63,6.93321439]
[1732665631220,4.1684,230.68,230.63,6.93321439]
[1732665631424,2.0,230.68,230.55,4.5633]
[1732665631722,2.0,230.68,230.61,6.93321439]
[1732665632219,6.93321439,230.67,230.59,6.93321439]
[1732665632914,2.1691,230.62,230.59,6.93321439]
[1732665633112,4.1691,230.62,230.59,6.93321439]
[1732665633512,4.1691,230.62,230.61,6.93321439]
[1732665636323,2.1691,230.61,230.59,6.93321439]
[1732665636917,2.0,230.62,230.55,2.5633]
[1732665637122,2.1695,230.57,230.54,8.14711439]
[1732665637422,4.1695,230.57,230.54,8.14711439]
[1732665639624,2.0,230.57,230.54,8.14711439]
[1732665639923,2.0,230.57,230.56,6.93321439]
[1732665644926,2.0,230.57,230.51,6.93321439]
[1732665645727,2.1699,230.53,230.47,1.2944]
[1732665645927,2.0,230.52,230.49,6.93321439]
[1732665650531,2.0,230.53,230.51,6.93321439]
[1732665650825,2.0,230.54,230.52,6.93321439]
[1732665651126,33.84,230.74,230.52,6.93321439]
[1732665651430,6.93321439,230.68,230.47,1.2944]
[1732665651633,15.1487,230.66,230.59,6.93321439]
[1732665651933,12.98,230.66,230.59,6.93321439]
[1732665652128,6.93321439,230.68,230.5,2.0]
[1732665652129,2.0,230.65,230.57,2.1694]
[1732665652325,2.0,230.67,230.63,6.93321439]
[1732665652534,2.0,230.67,230.66,6.93321439]
[1732665654533,2.0,230.67,230.62,10.8376176]
[1732665655133,2.0,230.67,230.59,10.8376176]
[1732665655433,2.1687,230.66,230.59,10.8376176]
[1732665655630,2.0,230.67,230.57,1.2581]
[1732665656733,2.1688,230.64,230.57,1.2581]
[1732665657936,2.0,230.67,230.53,10.8376176]
[1732665658833,2.1689,230.63,230.53,10.8376176]
[1732665659029,2.0,230.62,230.53,10.8376176]
[1732665660334,2.0,230.62,230.5,1.307]
[1732665660335,2.0,230.62,230.56,10.8376176]
[1732665661235,1.201,230.7,230.59,10.8376176]
[1732665661538,4.1684,230.69,230.63,2.1689]
[1732665662239,2.0,230.69,230.59,10.8376176]
[1732665662540,2.0,230.71,230.65,10.8376176]
[1732665662730,2.0,230.71,230.66,2.1685]
[1732665662930,2.0,230.71,230.65,10.8376176]
[1732665664737,2.0,230.71,230.68,10.8376176]
[1732665665035,2.0,230.76,230.7,2.1682]
[1732665665335,2.0,230.76,230.71,10.8376176]
[1732665665531,4.1677,230.76,230.69,1.2701]
[1732665665733,4.1677,230.76,230.7,2.1682]
[1732665665937,4.1677,230.76,230.65,10.8376176]
[1732665665938,2.0,230.76,230.65,10.8376176]
[1732665666440,2.0,230.76,230.64,2.1687]
[1732665666632,2.0,230.76,230.62,12.1077176]
[1732665666838,0.6492931,230.76,230.65,10.8376176]
[1732665667037,2.6492931,230.75,230.68,10.8376176]
[1732665667236,0.6492931,230.74,230.68,10.8376176]
[1732665667936,0.6492931,230.74,230.73,2.168]
[1732665668335,2.0,230.76,230.73,2.168]
[1732665668641,0.6492931,230.75,230.74,2.1679]
[1732665668842,0.6492931,230.77,230.71,10.8376176]
[1732665669040,0.6492931,230.76,230.74,2.1679]
[1732665669236,0.6492931,230.75,230.74,2.1679]
[1732665669437,0.6492931,230.77,230.74,2.1679]
[1732665669637,27.0267472,230.78,230.71,10.8376176]
[1732665669638,0.6492931,230.76,230.71,10.8376176]
[1732665669840,27.0267472,230.78,230.71,10.8376176]
[1732665670044,0.64980054,230.77,230.74,10.8376176]
[1732665670646,0.64980054,230.77,230.75,2.1678]
[1732665672244,0.64980054,230.77,230.71,10.8376176]
[1732665672547,2.1678,230.75,230.68,10.8376176]
[1732665672743,2.64980054,230.74,230.68,10.8376176]
[1732665672943,0.64980054,230.73,230.68,10.8376176]
[1732665673140,0.64980054,230.73,230.68,2.1684]
[1732665673343,0.64980054,230.73,230.65,1.2472]
[1732665673545,0.64980054,230.73,230.63,1.318]
[1732665673845,0.64980054,230.73,230.58,10.8376176]
[1732665674043,10.8376176,230.71,230.55,10.8376176]
[1732665674343,10.8376176,230.68,230.53,3.6704]
[1732665674545,10.8376176,230.65,230.5,10.8376176]
[1732665674743,2.64980054,230.64,230.5,10.8376176]
[1732665675046,0.64980054,230.63,230.5,10.8376176]
[1732665675442,2.1694,230.58,230.5,10.8376176]
[1732665675640,2.0,230.57,230.5,10.8376176]
[1732665676344,2.0,230.57,230.47,17.36027484]
[1732665677040,4.1695,230.57,230.47,17.36027484]
[1732665677246,2.0,230.57,230.47,17.36027484]
[1732665677449,2.0,230.57,230.51,17.36027484]
[1732665677749,2.0,230.59,230.51,17.36027484]
[1732665678047,2.0,230.6,230.51,17.36027484]
[1732665678243,2.0,230.6,230.53,2.1698]
[1732665678442,2.0,230.6,230.55,17.36027484]
[1732665678638,2.0,230.62,230.55,17.36027484]
[1732665678947,2.0,230.64,230.59,2.1692]
[1732665679444,2.0,230.64,230.6,2.1692]
[1732665680648,2.0,230.64,230.58,2.1693]
[1732665680850,2.0,230.64,230.56,3.8855]
[1732665681838,2.1689,230.63,230.56,4.7272]
[1732665682640,2.1689,230.63,230.51,17.36027484]
[1732665682641,2.0,230.64,230.51,17.36027484]
[1732665682845,2.0,230.64,230.5,2.4409]
[1732665683045,2.0,230.64,230.47,17.36027484]
[1732665683246,17.36027484,230.62,230.44,3.6774]
[1732665683446,17.36027484,230.62,230.44,2.4258]
[1732665683643,16.7566,230.61,230.45,2.1706]
[1732665684249,16.7566,230.61,230.43,17.51582484]
[1732665684650,30.34027484,230.58,230.43,0.15555]
[1732665684849,2.1706,230.45,230.43,0.15555]
[1732665685154,2.0,230.44,230.43,0.15555]
[1732665688249,2.1711,230.4,230.29,2.5534]
[1732665688450,2.02,230.39,230.29,1.3304]
[1732665688753,17.36027484,230.46,230.26,17.36027484]
[1732665688754,2.02,230.38,230.26,17.36027484]
[1732665688952,2.02,230.37,230.26,17.36027484]
[1732665689151,2.02,230.36,230.31,2.1719]
[1732665689757,3.3831,230.43,230.3,17.36027484]
[1732665690058,2.02,230.42,230.3,17.36027484]
[1732665690256,4.1909,230.42,230.3,17.36027484]
[1732665690456,4.1909,230.42,230.34,2.1715]
[1732665691557,2.171,230.41,230.32,2.1717]
[1732665691758,2.02,230.42,230.3,17.36027484]
[1732665691956,2.1711,230.4,230.3,17.36027484]
[1732665692253,2.02,230.42,230.26,17.36027484]
[1732665692449,2.02,230.42,230.33,0.32993]
[1732665694257,2.1715,230.36,230.33,0.32993]
[1732665694555,2.02,230.35,230.33,0.32993]
[1732665695850,4.1916,230.35,230.33,0.32993]
[1732665697162,2.02,230.35,230.33,0.32993]
[1732665698159,2.04,230.36,230.33,0.32993]
[1732665698465,2.04,230.38,230.33,17.69020484]
[1732665698763,2.04,230.39,230.34,2.1716]
[1732665699058,2.04,230.38,230.33,0.32993]
[1732665699253,2.04,230.37,230.33,0.32993]
[1732665699460,2.04,230.36,230.33,0.32993]
[1732665699657,2.04,230.35,230.33,0.32993]
[1732665699951,2.04,230.34,230.33,0.32993]
[1732665700354,33.86,230.48,230.33,0.32993]
[1732665700553,2.68999814,230.47,230.33,17.69020484]
[1732665700753,0.64999814,230.46,230.33,17.69020484]
[1732665701556,33.86,230.48,230.33,17.69020484]
[1732665701760,2.69007566,230.47,230.41,2.1709]
[1732665701962,2.69007566,230.47,230.37,17.36027484]
[1732665701963,0.65007566,230.46,230.37,17.36027484]
[1732665702359,2.04,230.47,230.37,17.36027484]
[1732665702565,0.64993175,230.46,230.38,17.36027484]
[1732665702863,2.04,230.49,230.42,17.36027484]
[1732665703257,2.04,230.63,230.46,17.36027484]
[1732665703460,2.1691,230.61,230.53,2.1698]
[1732665703660,2.69032753,230.6,230.51,17.36027484]
[1732665703866,4.85962753,230.59,230.52,2.1699]
[1732665704167,2.4054,230.68,230.51,17.36027484]
[1732665704358,2.69062168,230.67,230.51,17.36027484]
[1732665704664,2.69062168,230.67,230.55,2.1696]
[1732665704665,2.1689,230.64,230.55,2.1696]
[1732665704857,0.65061232,230.63,230.48,1.2601]
[1732665705054,2.04,230.67,230.48,1.2601]
[1732665705055,2.67061232,230.62,230.48,1.2601]
[1732665705266,2.67061232,230.61,230.48,1.2601]
[1732665705466,2.1694,230.58,230.48,1.2601]
[1732665705763,2.02,230.57,230.48,1.2601]
[1732665705964,4.1895,230.57,230.49,2.1702]
[1732665706267,4.1895,230.57,230.48,1.2601]
[1732665706864,2.02,230.57,230.48,1.2601]
[1732665707064,2.02,230.58,230.51,17.36027484]
[1732665707759,2.02,230.58,230.54,2.1697]
[1732665707967,2.02,230.58,230.51,17.36027484]
[1732665708168,2.02,230.58,230.48,1.2601]
[1732665709370,2.1695,230.57,230.51,2.17]
[1732665710178,2.02,230.58,230.49,2.1702]
[1732665710670,2.02,230.58,230.48,1.2601]
[1732665711267,2.1696,230.56,230.5,2.1701]
[1732665711470,2.02,230.58,230.48,1.2601]
[1732665712372,2.02,230.58,230.51,2.17]
[1732665712773,2.02,230.58,230.52,2.1699]
[1732665712969,2.4054,230.68,230.5,17.36027484]
[1732665713274,2.4054,230.68,230.54,17.36027484]
[1732665713275,2.67037107,230.67,230.54,17.36027484]
[1732665713472,0.65037107,230.66,230.54,17.36027484]
[1732665713673,2.169,230.62,230.56,2.1695]
[1732665713874,2.02,230.61,230.56,2.1695]
[1732665714072,2.02,230.61,230.54,17.36027484]
[1732665714869,2.02,230.61,230.56,2.1695]
[1732665714870,4.1891,230.61,230.56,2.1695]
[1732665715472,2.02,230.61,230.48,1.2601]
[1732665715674,0.65057285,230.6,230.48,1.2601]
[1732665716166,2.1697,230.55,230.5,2.17]
[1732665716376,2.02,230.54,230.5,2.17]
[1732665716781,2.02,230.54,230.48,3.4304]
[1732665717288,2.02,230.54,230.48,1.2601]
[1732665718088,2.02,230.54,230.47,1.1993]
[1732665718394,2.1701,230.51,230.47,1.1993]
[1732665719288,2.1699,230.52,230.47,1.1993]
[1732665719886,2.17,230.51,230.46,2.1705]
[1732665720286,2.02,230.54,230.44,2.1706]
[1732665720488,2.02,230.54,230.41,2.5146]
[1732665720888,1.3062,230.62,230.41,2.5146]
[1732665721089,2.08,230.61,230.48,17.36027484]
[1732665721291,0.65089675,230.6,230.48,17.36027484]
[1732665721489,2.1694,230.58,230.52,2.1699]
[1732665721790,2.1694,230.58,230.48,17.36027484]
[1732665722096,30.34027484,230.75,230.56,17.36027484]
[1732665722286,2.73112888,230.67,230.56,17.36027484]
[1732665722490,2.1692,230.61,230.55,2.1696]
[1732665722686,2.08,230.67,230.52,17.36027484]
[1732665722687,2.08,230.6,230.52,17.36027484]
[1732665722889,2.08,230.59,230.52,17.36027484]
[1732665723086,2.1695,230.57,230.52,2.1699]
[1732665723393,2.08,230.57,230.48,17.36027484]
[1732665726402,2.1696,230.56,230.51,2.17]
[1732665727900,2.08,230.57,230.48,17.36027484]
[1732665728197,2.1697,230.55,230.5,2.1701]
[1732665728393,2.08,230.57,230.44,1.3223]
[1732665728900,2.17,230.52,230.47,2.1704]
[1732665729299,4.25,230.52,230.47,2.1704]
[1732665729498,2.08,230.52,230.44,2.1706]
[1732665729699,2.08,230.52,230.41,2.5146]
[1732665729898,0.65090433,230.51,230.41,2.5146]
[1732665730097,2.1705,230.46,230.41,2.5146]
[1732665730392,2.08,230.45,230.41,2.5146]
[1732665730792,2.08,230.45,230.42,2.1709]
[1732665732998,2.08,230.45,230.38,17.36027484]
[1732665733396,2.08,230.45,230.34,17.36027484]
[1732665733899,0.6505349,230.44,230.37,2.1713]
[1732665734604,0.6505349,230.44,230.35,2.1715]
[1732665734801,0.6505349,230.44,230.34,17.36027484]
[1732665734998,2.8212349,230.44,230.36,17.36027484]
[1732665735299,2.08,230.46,230.36,17.36027484]
[1732665735499,1.3151,230.54,230.36,17.36027484]
[1732665735500,2.73057273,230.45,230.36,17.36027484]
[1732665735799,43.91421155,230.67,230.44,17.36027484]
[1732665736001,2.08,230.55,230.44,17.36027484]
[1732665736202,43.91421155,230.67,230.52,17.36027484]
[1732665736203,39.57701155,230.67,230.52,17.36027484]
[1732665736396,10.67390898,230.66,230.56,17.36027484]
[1732665736596,10.02301993,230.66,230.6,17.36027484]
[1732665736798,39.57701155,230.67,230.6,17.36027484]
[1732665737108,39.57701155,230.67,230.56,17.36027484]
[1732665737403,0.6459457,230.66,230.53,2.4906]
[1732665737609,2.08,230.65,230.53,2.4906]
[1732665738201,2.1691,230.61,230.54,2.1697]
[1732665738411,2.08,230.6,230.53,2.4906]
[1732665738707,2.1693,230.59,230.53,2.4906]
[1732665738904,2.08,230.6,230.48,17.36027484]
[1732665739410,2.1695,230.57,230.48,19.53057484]
[1732665739609,0.6458105,230.59,230.48,17.36027484]
[1732665740610,0.6458105,230.59,230.52,17.36027484]
[1732665740810,2.08,230.58,230.52,17.36027484]
[1732665741509,2.08,230.58,230.52,19.53017484]
[1732665741903,2.08,230.58,230.52,17.36027484]
[1732665742114,4.2494,230.58,230.52,17.36027484]
[1732665744011,4.2494,230.58,230.51,2.17]
[1732665744012,2.1695,230.57,230.49,2.1701]
[1732665744408,2.1695,230.57,230.5,2.1701]
[1732665744610,2.08,230.58,230.48,17.36027484]
[1732665745314,9.84953603,230.66,230.52,17.36027484]
[1732665745510,2.08,230.65,230.56,17.36027484]
[1732665745710,2.1688,230.64,230.58,2.1693]
[1732665746314,2.1688,230.64,230.56,19.52977484]
[1732665746515,2.1689,230.63,230.56,19.52977484]
[1732665747116,2.08,230.65,230.56,17.36027484]
[1732665747317,2.08,230.65,230.52,17.36027484]
[1732665747516,2.08,230.65,230.48,17.36027484]
[1732665747924,2.08,230.65,230.52,2.1699]
[1732665747925,2.1693,230.59,230.52,2.1699]
[1732665748218,2.18,230.58,230.48,17.36027484]
[1732665749320,2.18,230.58,230.52,2.1699]
[1732665749717,4.3494,230.58,230.52,2.1699]
[1732665749917,2.18,230.58,230.48,17.36027484]
[1732665750118,2.18,230.58,230.46,2.5937]
[1732665750321,2.1699,230.52,230.46,2.5937]
[1732665750517,4.3499,230.52,230.46,2.5937]
[1732665750716,2.18,230.52,230.45,1.2648]
[1732665750919,2.18,230.52,230.42,2.1708]
[1732665751317,2.1705,230.46,230.36,17.36027484]
[1732665751616,2.18,230.46,230.35,2.5464]
[1732665751821,2.18,230.46,230.35,1.3191]
[1732665752018,2.18,230.46,230.32,18.55977484]
[1732665752219,2.1709,230.42,230.34,2.1715]
[1732665752417,17.36027484,230.52,230.34,2.1715]
[1732665752418,2.18,230.41,230.34,2.1715]
[1732665752723,2.18,230.4,230.32,18.55977484]
[1732665752912,2.1713,230.38,230.33,2.1717]
[1732665753116,4.3513,230.38,230.33,2.1717]
[1732665753520,2.18,230.38,230.33,2.1717]
[1732665754115,30.39027484,230.52,230.32,18.55977484]
[1732665754116,17.36027484,230.52,230.32,18.55977484]
[1732665754322,12.67138826,230.51,230.36,17.36027484]
[1732665754621,2.81655379,230.5,230.43,2.1707]
[1732665754820,2.82635379,230.49,230.4,17.36027484]
[1732665755025,2.18,230.49,230.4,17.36027484]
[1732665755215,4.3502,230.49,230.44,2.1707]
[1732665755421,2.18,230.49,230.4,17.36027484]
[1732665755618,2.18,230.49,230.41,2.5104]
[1732665755819,2.18,230.49,230.44,17.36027484]
[1732665756026,2.18,230.49,230.47,2.1704]
[1732665756323,2.18,230.56,230.48,17.36027484]
[1732665756522,4.3362,230.72,230.54,2.1697]
[1732665756523,2.1693,230.6,230.54,2.1697]
[1732665756725,0.64682796,230.59,230.52,17.36027484]
[1732665757029,2.18,230.64,230.56,17.36027484]
[1732665757321,0.64690227,230.63,230.6,17.36027484]
[1732665757525,9.85237316,230.69,230.6,17.36027484]
[1732665757722,9.85237316,230.69,230.65,2.1687]
[1732665757925,42.16936972,230.7,230.61,1.2668]
[1732665759519,2.1685,230.68,230.61,1.2668]
[1732665760026,2.1685,230.68,230.6,2.1691]
[1732665760027,2.18,230.7,230.56,17.36027484]
[1732665760328,2.1686,230.66,230.58,2.1693]
[1732665760531,2.18,230.65,230.56,17.36027484]
[1732665760723,2.18,230.69,230.6,17.36027484]
[1732665761125,2.1681,230.72,230.65,2.1687]
[1732665761330,2.18,230.71,230.65,2.1687]
[1732665761626,2.18,230.71,230.63,2.1689]
[1732665761926,2.18,230.71,230.64,17.36027484]
[1732665762115,2.18,230.72,230.64,17.36027484]
[1732665763526,4.3481,230.72,230.65,2.1686]
[1732665763827,2.18,230.72,230.61,3.402]
[1732665764218,4.3481,230.72,230.65,2.1687]
[1732665764421,2.18,230.72,230.61,3.402]
[1732665764919,2.18,230.72,230.61,1.222]
[1732665765123,2.1684,230.69,230.63,2.1689]
[1732665765327,2.18,230.72,230.61,1.222]
[1732665765527,2.18,230.72,230.66,2.1686]
[1732665765931,2.18,230.72,230.61,1.222]
[1732665766827,2.1683,230.7,230.61,1.222]
[1732665768439,2.1685,230.68,230.6,17.36027484]
[1732665768734,2.18,230.67,230.63,2.1689]
[1732665768929,2.18,230.68,230.63,2.1689]
[1732665769326,2.18,230.68,230.56,18.60847484]
[1732665769933,2.18,230.68,230.56,20.77797484]
[1732665770828,2.18,230.68,230.57,2.1694]
[1732665771135,2.18,230.68,230.56,18.60847484]
[1732665771330,2.18,230.68,230.56,1.2482]
[1732665771529,2.18,230.68,230.57,2.1695]
[1732665771738,2.18,230.68,230.56,1.2482]
[1732665772236,2.18,230.68,230.56,3.4177]
[1732665772625,2.18,230.68,230.56,1.2482]
[1732665773735,2.169,230.62,230.55,3.428]
[1732665774030,2.18,230.61,230.55,3.428]
[1732665774227,2.18,230.61,230.56,2.1696]
[1732665774734,2.18,230.61,230.51,2.17]
[1732665775130,2.18,230.61,230.5,1.2638]
[1732665775330,2.18,230.61,230.48,17.36027484]
[1732665776632,2.18,230.61,230.43,1.2638]
[1732665776633,2.18,230.61,230.44,17.36027484]
[1732665776827,1.248,230.6,230.44,17.36027484]
[1732665777032,11.05310207,230.6,230.44,17.36027484]
[1732665777233,1.248,230.6,230.44,17.36027484]
[1732665777538,18.60827484,230.6,230.44,17.36027484]
[1732665777726,9.80590497,230.59,230.44,17.36027484]
[1732665777926,2.17,230.51,230.45,2.1706]
[1732665778126,2.2,230.5,230.42,2.5388]
[1732665778334,2.2,230.49,230.4,17.36027484]
[1732665778532,2.1704,230.47,230.41,2.171]
[1732665778835,2.2,230.46,230.4,17.36027484]
[1732665779036,2.2,230.45,230.4,17.36027484]
[1732665779332,2.2,230.47,230.4,17.36027484]
[1732665780136,2.2,230.52,230.47,2.1704]
[1732665780437,2.2,230.52,230.44,17.36027484]
[1732665780438,2.2,230.53,230.44,17.36027484]
[1732665780635,2.2,230.52,230.44,17.36027484]
[1732665780828,2.2,230.52,230.47,2.1704]
[1732665781027,1.248,230.6,230.48,17.36027484]
[1732665781228,2.2,230.59,230.48,17.36027484]
[1732665781431,2.4938,230.67,230.48,17.36027484]
[1732665781634,12.01372912,230.66,230.52,17.36027484]
[1732665781835,2.2,230.66,230.52,17.36027484]
[1732665782444,2.1692,230.6,230.54,2.1697]
[1732665782739,2.2,230.59,230.54,2.1697]
[1732665783133,2.2,230.59,230.52,17.36027484]
[1732665783338,2.2,230.59,230.55,2.1696]
[1732665783735,2.2,230.59,230.56,2.1695]
[1732665783933,38.28744567,230.75,230.52,17.36027484]
[1732665784242,17.36027484,230.7,230.52,17.36027484]
[1732665784436,2.169,230.62,230.56,2.1695]
[1732665784740,2.2,230.61,230.56,2.1695]
[1732665784939,2.2,230.61,230.57,2.1694]
[1732665785839,2.1692,230.6,230.55,2.1696]
[1732665786038,2.2,230.61,230.49,3.8322]
[1732665786539,2.2,230.61,230.5,2.17]
[1732665786734,2.2,230.61,230.49,3.8322]
[1732665787131,2.2,230.61,230.44,17.36027484]
[1732665787439,2.2,230.61,230.44,21.05167484]
[1732665787633,2.1696,230.56,230.44,21.05167484]
[1732665787837,2.2,230.55,230.44,21.05167484]
[1732665788037,2.2,230.54,230.44,21.05167484]
[1732665788736,2.1699,230.53,230.47,2.1704]
[1732665789236,2.1699,230.53,230.48,2.1703]
[1732665789639,2.1702,230.49,230.44,21.05167484]
[1732665789834,2.2,230.49,230.44,3.6914]
[1732665790039,2.2,230.49,230.36,17.36027484]
[1732665790344,2.2,230.49,230.36,19.53167484]
[1732665790735,2.1709,230.42,230.36,17.36027484]
[1732665790931,2.2,230.42,230.36,17.36027484]
[1732665791139,2.2,230.46,230.4,17.36027484]
[1732665791432,2.2,230.46,230.3,2.5647]
[1732665791433,2.2,230.46,230.36,19.53167484]
[1732665791638,2.2,230.46,230.36,17.36027484]
[1732665792041,2.2,230.46,230.39,2.1711]
[1732665792241,2.2,230.46,230.36,17.36027484]
[1732665792438,2.2,230.46,230.4,2.171]
[1732665792640,2.2,230.46,230.36,17.36027484]
[1732665793036,2.1708,230.43,230.36,19.53167484]
[1732665793245,2.1708,230.43,230.36,17.36027484]
[1732665793743,2.1707,230.45,230.36,17.36027484]
[1732665794141,2.2,230.46,230.36,17.36027484]
[1732665794348,2.2,230.46,230.37,2.1713]
[1732665794843,17.36027484,230.58,230.36,17.36027484]
[1732665795141,11.98656044,230.57,230.4,17.36027484]
[1732665795340,2.2,230.57,230.43,2.1707]
[1732665795540,2.2,230.57,230.4,17.36027484]
[1732665795736,2.2,230.57,230.36,2.2]
[1732665795737,2.2,230.56,230.44,17.36027484]
[1732665795936,4.3697,230.55,230.48,2.1702]
[1732665796139,2.2,230.54,230.45,1.317]
[1732665796444,2.1699,230.52,230.46,2.1705]
[1732665796645,2.2,230.51,230.45,1.317]
[1732665797141,2.2,230.51,230.48,2.1703]
[1732665797345,2.2,230.51,230.45,1.317]
[1732665797846,4.3701,230.51,230.45,3.4876]
[1732665798853,2.1702,230.49,230.45,1.317]
[1732665799148,2.2,230.51,230.41,2.5755]
[1732665799441,2.1706,230.46,230.4,2.171]
[1732665799741,2.2,230.45,230.4,2.171]
[1732665800340,2.1707,230.44,230.38,2.1712]
[1732665800641,2.2,230.45,230.32,17.36027484]
[1732665800836,2.1712,230.39,230.33,2.1716]
[1732665801139,4.3712,230.39,230.33,2.1716]
[1732665801345,2.2,230.39,230.33,2.1716]
[1732665801543,2.1713,230.38,230.33,2.1716]
[1732665802139,2.1713,230.38,230.32,17.36027484]
[1732665802339,2.2,230.39,230.3,1.224]
[1732665802944,2.1715,230.36,230.3,1.224]
[1732665803941,2.2,230.39,230.3,1.224]
[1732665804141,2.1716,230.35,230.3,1.224]
[1732665804347,2.2,230.34,230.3,1.224]
[1732665804542,2.2,230.34,230.29,4.698]
[1732665804543,4.3717,230.34,230.29,4.698]
[1732665804746,4.3717,230.34,230.07,23.98859466]
[1732665804747,2.2,230.34,230.24,17.36027484]
[1732665805139,2.1718,230.33,230.24,17.36027484]
[1732665805343,2.2,230.34,230.24,17.36027484]
[1732665805546,2.2,230.34,230.23,1.2777]
[1732665805547,17.36027484,230.47,230.28,17.36027484]
[1732665805745,1.2404,230.49,230.32,17.36027484]
[1732665805746,2.2,230.46,230.32,17.36027484]
[1732665805952,2.24,230.45,230.32,17.36027484]
[1732665806146,2.24,230.45,230.33,1.2794]
[1732665807043,2.171,230.42,230.33,1.2794]
[1732665807848,2.171,230.42,230.37,2.1713]
[1732665809347,2.24,230.45,230.33,1.2794]
[1732665810137,1.2404,230.49,230.36,17.36027484]
[1732665810344,2.24,230.48,230.4,17.36027484]
[1732665810740,33.86,230.56,230.4,17.36027484]
[1732665810741,2.24,230.5,230.4,17.36027484]
[1732665810944,2.24,230.5,230.44,17.36027484]
[1732665811150,2.24,230.5,230.46,2.1705]
[1732665811347,2.24,230.5,230.45,2.6008]
[1732665812651,2.24,230.5,230.45,4.7713]
[1732665812849,2.24,230.5,230.45,2.6008]
[1732665814355,33.86,230.56,230.45,2.6008]
[1732665814552,2.24,230.55,230.45,2.6008]